[Event "Romanian-ch Youth Open U14 2024"]
[Site "Eforie Nord"]
[Date "2024.04.12"]
[Round "1.1"]
[White "Ilinca, Felix-Antonio"]
[Black "Oprea, Paul Angel Andrei"]
[Result "1-0"]
[ECO "B54"]
[WhiteElo "2371"]
[BlackElo "1663"]
[Annotator "RC"]
[PlyCount "85"]
[EventDate "2024.04.10"]
[EventType "swiss"]
[EventCountry "ROU"]
[SourceTitle "playchess.com"]
[Source "ChessBase"]
[SourceQuality "1"]
[TimeControl "5400+30"]

1. e4 {[%emt 0:00:20]} c5 {[%emt 0:00:02]} 2. Nf3 {[%emt 0:00:20]} d6 {[%emt 0:00:10]} 3. d4 {[%emt 0:00:21]} cxd4 {[%emt 0:00:04]} 4. Nxd4 {[%emt 0:00:22]} a6 {[%emt 0:00:05]} 5. c4 {[%emt 0:02:53]} Nf6 {[%emt 0:00:45]} 6. Nc3 {[%emt 0:00:34]} g6 {[%emt 0:02:13]} 7. Be2 {[%emt 0:01:28]} Bg7 {[%emt 0:01:05]} 8. O-O {[%emt 0:00:50]} Qc7 {[%emt 0:02:44]} 9. Be3 {[%emt 0:03:16]} O-O {[%emt 0:03:29]} 10. Rc1 {[%emt 0:01:50]} Nbd7 {[%emt 0:01:21]} 11. h3 {[%emt 0:02:56]} b6 {[%emt 0:05:09]} 12. Nd5 {[%emt 0:03:25]} Nxd5 {[%emt 0:01:21]} 13. cxd5 {[%emt 0:00:12]} Qb7 {[%emt 0:03:55]} 14. Nc6 {[%emt 0:05:29]} Re8 {[%emt 0:07:25]} 15. b4 {[%emt 0:03:21]} Nf6 {[%emt 0:08:01]} 16. Bf3 {[%emt 0:03:49]} Nd7 {[%emt 0:07:17]} 17. a4 {[%emt 0:04:31]} Ne5 {[%emt 0:01:10]} 18. Be2 {[%emt 0:01:08]} Nxc6 {[%emt 0:01:04]} 19. Rxc6 {[%emt 0:02:28]} b5 {[%emt 0:10:41]} 20. Qc2 {[%emt 0:04:21]} bxa4 {[%emt 0:03:34]} 21. Rc7 {[%emt 0:00:41]} Qxb4 {[%emt 0:02:09]} 22. Rb1 {[%emt 0:00:13]} Qa3 {[%emt 0:16:37]} 23. Bc1 {[%emt 0:00:46]} Bb2 {[%emt 0:03:38]} 24. Rxb2 {[%emt 0:00:55]} Qa1 {[%emt 0:01:18]} 25. Rc3 {[%emt 0:00:19]} Bd7 {[%emt 0:02:51]} 26. Rb1 {[%emt 0:00:30]} Qxc3 {[%emt 0:00:50]} 27. Qxc3 {[%emt 0:00:06]} Rec8 {[%emt 0:00:07]} 28. Qd4 {[%emt 0:00:19]} Rc2 {[%emt 0:00:26]} 29. Bd1 {[%emt 0:00:16]} Rxc1 {[%emt 0:00:34]} 30. Rxc1 {[%emt 0:00:06]} Rb8 {[%emt 0:00:09]} 31. Qa7 {[%emt 0:00:12]} Rd8 {[%emt 0:00:23]} 32. Qc7 {[%emt 0:00:08]} Rc8 {[%emt 0:00:08]} 33. Qxc8+ {[%emt 0:00:11]} Bxc8 {[%emt 0:00:03]} 34. Rxc8+ {[%emt 0:00:08]} Kg7 {[%emt 0:00:03]} 35. Bxa4 {[%emt 0:00:09]} a5 {[%emt 0:00:43]} 36. f4 {[%emt 0:00:16]} e5 {[%emt 0:00:04]} 37. fxe5 {[%emt 0:00:06]} dxe5 {[%emt 0:00:08]} 38. d6 {[%emt 0:00:08]} Kh6 {[%emt 0:00:05]} 39. d7 {[%emt 0:00:06]} f5 {[%emt 0:00:05]} 40. d8=Q {[%emt 0:00:07]} fxe4 {[%emt 0:00:09]} 41. Qh4+ {[%emt 0:00:06]} Kg7 {[%emt 0:00:06]} 42. Rc7+ {[%emt 0:00:04]} Kf8 {[%emt 0:00:08]} 43. Qd8# {[%emt 0:00:06]} 1-0

[Event "Romanian-ch Youth Open U14 2024"]
[Site "Eforie Nord"]
[Date "2024.04.12"]
[Round "1.2"]
[White "Nasui, Andrei-Catalin"]
[Black "Dodoi, Matei-Teodor"]
[Result "0-1"]
[ECO "A13"]
[WhiteElo "1653"]
[BlackElo "2070"]
[Annotator "TA"]
[PlyCount "68"]
[EventDate "2024.04.10"]
[EventType "swiss"]
[EventCountry "ROU"]
[SourceTitle "playchess.com"]
[Source "ChessBase"]
[SourceQuality "1"]
[TimeControl "5400+30"]

{[%evp 12,68,-8,-21,-14,-6,0,0,0,0,0,0,6,-40,-10,-42,0,-46,-4,-43,-41,-47,-17,-10,-10,-13,22,-13,-17,-24,-15,-104,-106,-99,-105,-103,-103,-114,-100,-128,-97,-122,-120,-113,-115,-110,-115,-133,-139,-144,-151,-144,-145,-268,-275,-762,-744,-820,-809]} 1. Nf3 {[%emt 0:00:03]} Nf6 {[%emt 0:00:21]} 2. b3 {[%emt 0:00:40]} d5 {[%emt 0:04:16]} 3. Bb2 {[%emt 0:02:30]} c5 {[%emt 0:01:47]} 4. e3 {[%emt 0:01:58]} e6 {[%emt 0:01:42]} 5. c4 {[%emt 0:03:26]} Nc6 {[%emt 0:03:19]} 6. d4 {[%emt 0:02:10]} cxd4 {[%emt 0:02:58]} 7. exd4 {[%emt 0:01:58]} Bb4+ {[%emt 0:09:42]} 8. Nbd2 {[%emt 0:04:33]} Ne4 {[%emt 0:01:09] Strongly threatening ...Qf6.} 9. a3 {[%emt 0:04:58]} Nxd2 {[%emt 0:01:51] The position is equal.} 10. Nxd2 {[%emt 0:00:14]} Be7 {[%emt 0:01:02]} 11. Nf3 {[%emt 0:03:21]} Bf6 {[%emt 0:02:40]} 12. Be2 {[%emt 0:01:53]} (12. c5 $11) 12... O-O {[%emt 0:00:56]} 13. O-O {[%emt 0:03:08]} b6 {[%emt 0:07:46]} 14. Rc1 {[%emt 0:07:05]} (14. cxd5 $11 {should be considered.} Qxd5 15. Ne5) 14... Bb7 {[%emt 0:00:43]} 15. Qd2 {[%emt 0:01:53]} Na5 {[%emt 0:04:50]} 16. Qe3 {[%emt 0:03:45]} Rc8 {[%emt 0:01:39]} 17. Rfd1 {[%emt 0:02:03]} Qe7 {[%emt 0:04:22]} 18. Ne5 {[%emt 0:06:38]} Rfd8 {[%emt 0:05:33]} 19. f4 {[%emt 0:03:05]} dxc4 {[%emt 0:05:01]} 20. b4 {[%emt 0:03:47]} Nc6 {[%emt 0:06:06] Threatening ...b5.} 21. Nxc6 {[%emt 0:14:42]} (21. Bxc4 $11 Nxe5 22. dxe5) 21... Rxc6 $17 {[%emt 0:03:08]} 22. Rxc4 {[%emt 0:03:28]} Rxc4 {[%emt 0:01:02]} 23. Bxc4 {[%emt 0:00:04]} g6 {[%emt 0:03:15]} 24. Be2 {[%emt 0:06:20]} Bd5 {[%emt 0:02:40]} 25. Bf3 {[%emt 0:01:03]} Kg7 {[%emt 0:00:49]} 26. Bxd5 {[%emt 0:00:59]} Rxd5 {[%emt 0:00:07]} 27. g3 {[%emt 0:00:30]} Qd7 {[%emt 0:00:53]} 28. Rd2 {[%emt 0:01:48]} a5 {[%emt 0:01:27]} 29. Qc3 {[%emt 0:02:26]} axb4 {[%emt 0:00:56]} 30. Qxb4 {[%emt 0:00:23]} Rb5 {[%emt 0:00:39]} 31. Qc3 {[%emt 0:00:12]} Qd5 {[%emt 0:00:38] Black is more active.} 32. Rd3 {[%emt 0:01:52]} (32. Qc2 $17 {was called for.}) 32... Qa2 $19 {[%emt 0:02:47]} 33. Rd2 {[%emt 0:00:07]} (33. Bc1) 33... Rb3 {[%emt 0:00:34]} 34. Qc1 {[%emt 0:00:31] [#]} Rxb2 $1 {[%emt 0:01:36][%mdl 512] Weighted Error Value: White=0.43/Black=0.09 (flawless) .  Mistake:       	White=5     	---        Inaccurate:     	White=3     	Black=5      OK:         	White=6     	Black=10     Best:        	White=1     	Black=2} 0-1

[Event "Romanian-ch Youth Open U14 2024"]
[Site "Eforie Nord"]
[Date "2024.04.13"]
[Round "2.1"]
[White "Mohonea, Alexandru"]
[Black "Ilinca, Felix-Antonio"]
[Result "0-1"]
[ECO "A58"]
[WhiteElo "1748"]
[BlackElo "2371"]
[Annotator "RC"]
[PlyCount "50"]
[EventDate "2024.04.10"]
[EventType "swiss"]
[EventCountry "ROU"]
[SourceTitle "playchess.com"]
[Source "ChessBase"]
[SourceQuality "1"]
[TimeControl "5400+30"]

1. d4 {[%emt 0:00:06]} Nf6 {[%emt 0:00:45]} 2. c4 {[%emt 0:00:08]} c5 {[%emt 0:00:44]} 3. d5 {[%emt 0:00:05]} b5 {[%emt 0:00:31]} 4. cxb5 {[%emt 0:00:14]} a6 {[%emt 0:00:11]} 5. bxa6 {[%emt 0:00:08]} e6 {[%emt 0:00:53]} 6. Nc3 {[%emt 0:00:16]} exd5 {[%emt 0:00:25]} 7. Nxd5 {[%emt 0:00:14]} Be7 {[%emt 0:00:19]} 8. Nxe7 {[%emt 0:00:17]} Qxe7 {[%emt 0:00:20]} 9. e3 {[%emt 0:00:08]} O-O {[%emt 0:00:19]} 10. a4 {[%emt 0:00:32]} h6 {[%emt 0:03:59]} 11. Bb5 {[%emt 0:03:58]} Nxa6 {[%emt 0:05:45]} 12. Ne2 {[%emt 0:12:04]} Bb7 {[%emt 0:02:57]} 13. O-O {[%emt 0:01:59]} Rfd8 {[%emt 0:07:00]} 14. Nc3 {[%emt 0:04:53]} d5 {[%emt 0:02:31]} 15. Re1 {[%emt 0:02:21]} Nb4 {[%emt 0:08:46]} 16. Na2 {[%emt 0:12:45]} Nxa2 {[%emt 0:10:30]} 17. Rxa2 {[%emt 0:00:24]} d4 {[%emt 0:03:17]} 18. Qe2 {[%emt 0:05:06]} Qd6 {[%emt 0:08:09]} 19. Ra3 {[%emt 0:03:53]} Rac8 {[%emt 0:05:43]} 20. Rd1 {[%emt 0:06:29]} Qe6 {[%emt 0:04:59]} 21. exd4 {[%emt 0:09:09]} Rxd4 {[%emt 0:00:53]} 22. Be3 {[%emt 0:11:36]} Qd5 {[%emt 0:00:54]} 23. Bc1 {[%emt 0:25:15]} Qe6 {[%emt 0:32:10]} 24. Re1 {[%emt 0:00:30]} Re4 {[%emt 0:00:30]} 25. Re3 {[%emt 0:00:30]} Qd5 0-1

[Event "Romanian-ch Youth Open U14 2024"]
[Site "Eforie Nord"]
[Date "2024.04.13"]
[Round "2.2"]
[White "Dodoi, Matei-Teodor"]
[Black "Codru, Raul Cristian"]
[Result "1-0"]
[ECO "D43"]
[WhiteElo "2070"]
[BlackElo "1735"]
[Annotator "RC"]
[PlyCount "65"]
[EventDate "2024.04.10"]
[EventType "swiss"]
[EventCountry "ROU"]
[SourceTitle "playchess.com"]
[Source "ChessBase"]
[SourceQuality "1"]
[TimeControl "5400+30"]

1. d4 {[%emt 0:00:15]} Nf6 {[%emt 0:00:08]} 2. c4 {[%emt 0:00:16]} e6 {[%emt 0:02:01]} 3. Nf3 {[%emt 0:01:14]} d5 {[%emt 0:00:24]} 4. Nc3 {[%emt 0:00:54]} dxc4 {[%emt 0:03:05]} 5. Qa4+ {[%emt 0:03:17]} Nbd7 {[%emt 0:06:23]} 6. e4 {[%emt 0:03:41]} c6 {[%emt 0:01:47]} 7. Qxc4 {[%emt 0:00:39]} Nb6 {[%emt 0:02:13]} 8. Qd3 {[%emt 0:01:20]} Be7 {[%emt 0:07:01]} 9. Be3 {[%emt 0:01:19]} Ng4 {[%emt 0:11:35]} 10. Bf4 {[%emt 0:05:03]} h5 {[%emt 0:13:22]} 11. Be2 {[%emt 0:05:44]} Bb4 {[%emt 0:10:46]} 12. O-O {[%emt 0:04:47]} Qf6 {[%emt 0:08:44]} 13. Qd2 {[%emt 0:01:38]} Qg6 {[%emt 0:03:36]} 14. Bd3 {[%emt 0:06:23]} f6 {[%emt 0:04:32]} 15. e5 {[%emt 0:03:54]} f5 {[%emt 0:00:15]} 16. a3 {[%emt 0:01:43]} Be7 {[%emt 0:00:19]} 17. b4 {[%emt 0:02:05]} Bd7 {[%emt 0:03:59]} 18. Rfc1 {[%emt 0:01:37]} Nd5 {[%emt 0:02:49]} 19. Nxd5 {[%emt 0:01:11]} exd5 {[%emt 0:00:14]} 20. h3 {[%emt 0:02:15]} Nh6 {[%emt 0:00:10]} 21. e6 {[%emt 0:08:50]} Bxe6 {[%emt 0:05:02]} 22. b5 {[%emt 0:00:14]} Bd7 {[%emt 0:03:08]} 23. bxc6 {[%emt 0:00:52]} bxc6 {[%emt 0:00:32]} 24. Ne5 {[%emt 0:00:24]} Qf6 {[%emt 0:00:53]} 25. Rab1 {[%emt 0:01:58]} Bxa3 {[%emt 0:02:15]} 26. Nxd7 {[%emt 0:01:51]} Kxd7 {[%emt 0:02:47]} 27. Rb7+ {[%emt 0:00:28]} Ke8 {[%emt 0:00:22]} 28. Re1+ {[%emt 0:00:16]} Kf8 {[%emt 0:00:51]} 29. Be5 {[%emt 0:00:32]} Qh4 {[%emt 0:00:24]} 30. Bxg7+ {[%emt 0:00:24]} Kg8 {[%emt 0:00:05]} 31. Bxh6 {[%emt 0:00:35]} Bf8 {[%emt 0:00:55]} 32. Bxf8 {[%emt 0:01:20]} Rxf8 {[%emt 0:00:06]} 33. Ree7 {[%emt 0:00:14]} 1-0

[Event "Romanian-ch Youth Open U14 2024"]
[Site "Eforie Nord"]
[Date "2024.04.13"]
[Round "3.1"]
[White "Ilinca, Felix-Antonio"]
[Black "Ivancescu, Bogdan-Andrei"]
[Result "1-0"]
[ECO "B27"]
[WhiteElo "2371"]
[BlackElo "1837"]
[Annotator "RC"]
[PlyCount "67"]
[EventDate "2024.04.10"]
[EventType "swiss"]
[EventCountry "ROU"]
[SourceTitle "playchess.com"]
[Source "ChessBase"]
[SourceQuality "1"]
[TimeControl "5400+30"]

1. e4 {[%emt 0:00:46]} c5 {[%emt 0:00:05]} 2. Nf3 {[%emt 0:00:21]} g6 {[%emt 0:00:05]} 3. Bc4 {[%emt 0:01:18]} Bg7 {[%emt 0:01:06]} 4. c3 {[%emt 0:00:38]} e6 {[%emt 0:12:11]} 5. Qe2 {[%emt 0:04:23]} d6 {[%emt 0:06:09]} 6. d4 {[%emt 0:02:52]} cxd4 {[%emt 0:00:53]} 7. cxd4 {[%emt 0:00:17]} Ne7 {[%emt 0:10:31]} 8. d5 {[%emt 0:06:22]} e5 {[%emt 0:02:41]} 9. O-O {[%emt 0:01:35]} O-O {[%emt 0:01:15]} 10. Nbd2 {[%emt 0:03:21]} h6 {[%emt 0:01:46]} 11. b3 {[%emt 0:02:43]} a5 {[%emt 0:06:17]} 12. Bd3 {[%emt 0:07:07]} b6 {[%emt 0:07:44]} 13. Nc4 {[%emt 0:06:07]} Na6 {[%emt 0:02:00]} 14. Be3 {[%emt 0:01:37]} Nc5 {[%emt 0:00:28]} 15. Nfd2 {[%emt 0:03:14]} f5 {[%emt 0:06:31]} 16. f3 {[%emt 0:01:01]} f4 {[%emt 0:02:58]} 17. Bf2 {[%emt 0:00:24]} g5 {[%emt 0:02:03]} 18. Rfb1 {[%emt 0:11:17]} b5 {[%emt 0:12:37]} 19. Na3 {[%emt 0:00:34]} Nxd3 {[%emt 0:01:53]} 20. Qxd3 {[%emt 0:02:02]} Ba6 {[%emt 0:00:21]} 21. Nxb5 {[%emt 0:02:48]} Qd7 {[%emt 0:00:12]} 22. a4 {[%emt 0:00:16]} Rfb8 {[%emt 0:01:38]} 23. Nc4 {[%emt 0:03:13]} Bxb5 {[%emt 0:00:58]} 24. axb5 {[%emt 0:00:07]} Qxb5 {[%emt 0:00:50]} 25. Qc3 {[%emt 0:02:01]} Nc8 {[%emt 0:05:02]} 26. Rxa5 {[%emt 0:02:35]} Rxa5 {[%emt 0:03:44]} 27. Qxa5 {[%emt 0:03:15]} Qd7 {[%emt 0:01:05]} 28. b4 {[%emt 0:02:38]} Rb5 {[%emt 0:02:55]} 29. Qa8 {[%emt 0:03:05]} Kh7 {[%emt 0:00:30]} 30. Qc6 {[%emt 0:01:50]} Qb7 {[%emt 0:01:11]} 31. Qxb7 {[%emt 0:01:29]} Rxb7 {[%emt 0:00:01]} 32. b5 {[%emt 0:00:15]} Bf6 {[%emt 0:01:41]} 33. Na5 {[%emt 0:00:10]} Rb8 {[%emt 0:00:09]} 34. Nc6 {[%emt 0:00:20]} 1-0

[Event "Romanian-ch Youth Open U14 2024"]
[Site "Eforie Nord"]
[Date "2024.04.13"]
[Round "3.2"]
[White "Costache, Andrei Eugeniu"]
[Black "Dodoi, Matei-Teodor"]
[Result "0-1"]
[ECO "B43"]
[WhiteElo "1867"]
[BlackElo "2070"]
[Annotator "RC"]
[PlyCount "70"]
[EventDate "2024.04.10"]
[EventType "swiss"]
[EventCountry "ROU"]
[SourceTitle "playchess.com"]
[Source "ChessBase"]
[SourceQuality "1"]
[TimeControl "5400+30"]

1. e4 {[%emt 0:00:02]} c5 {[%emt 0:02:05]} 2. Nf3 {[%emt 0:01:01]} e6 {[%emt 0:00:53]} 3. d4 {[%emt 0:02:55]} cxd4 {[%emt 0:00:26]} 4. Nxd4 {[%emt 0:00:02]} a6 {[%emt 0:01:12]} 5. Nc3 {[%emt 0:07:19]} Qc7 {[%emt 0:00:35]} 6. Bd3 {[%emt 0:01:24]} Bc5 {[%emt 0:05:50]} 7. Nb3 {[%emt 0:05:37]} Be7 {[%emt 0:00:10]} 8. O-O {[%emt 0:00:32]} Nf6 {[%emt 0:00:33]} 9. Qf3 {[%emt 0:10:01]} Nc6 {[%emt 0:08:29]} 10. Bf4 {[%emt 0:03:14]} d6 {[%emt 0:02:10]} 11. Bg3 {[%emt 0:05:37]} O-O {[%emt 0:05:58]} 12. Qe2 {[%emt 0:03:44]} e5 {[%emt 0:11:04]} 13. f4 {[%emt 0:10:07]} Be6 {[%emt 0:12:11]} 14. Nd5 {[%emt 0:09:22]} Nxd5 {[%emt 0:07:26]} 15. exd5 {[%emt 0:00:07]} Bxd5 {[%emt 0:00:07]} 16. c4 {[%emt 0:04:42]} e4 {[%emt 0:06:27]} 17. Bb1 {[%emt 0:02:44]} Be6 {[%emt 0:07:05]} 18. Qxe4 {[%emt 0:00:16]} g6 {[%emt 0:01:06]} 19. f5 {[%emt 0:00:37]} gxf5 {[%emt 0:01:32]} 20. Rxf5 {[%emt 0:00:19]} Rfd8 {[%emt 0:02:18]} 21. Rf3 {[%emt 0:03:50]} Bg5 {[%emt 0:02:11]} 22. Qxh7+ {[%emt 0:00:14]} Kf8 {[%emt 0:00:07]} 23. Qh5 {[%emt 0:00:32]} Ne5 {[%emt 0:02:45]} 24. Bxe5 {[%emt 0:01:54]} dxe5 {[%emt 0:00:17]} 25. Qxg5 {[%emt 0:03:48]} Rd1+ {[%emt 0:00:32]} 26. Kf2 {[%emt 0:03:58]} Qxc4 {[%emt 0:02:11]} 27. Qxe5 {[%emt 0:04:31]} Rf1+ {[%emt 0:00:41]} 28. Ke3 {[%emt 0:01:12]} Re1+ {[%emt 0:00:22]} 29. Kf2 {[%emt 0:00:04]} Rxe5 {[%emt 0:00:07]} 30. Bd3 {[%emt 0:00:02]} Qh4+ {[%emt 0:00:23]} 31. Rg3 {[%emt 0:00:09]} Bxb3 {[%emt 0:00:17]} 32. axb3 {[%emt 0:00:04]} Rd8 {[%emt 0:00:10]} 33. Ra4 {[%emt 0:00:07]} Qf6+ {[%emt 0:00:17]} 34. Rf3 {[%emt 0:00:05]} Qxf3+ {[%emt 0:00:42]} 35. gxf3 {[%emt 0:00:11]} Rxd3 {[%emt 0:00:06]} 0-1

[Event "Romanian-ch Youth Open U14 2024"]
[Site "Eforie Nord"]
[Date "2024.04.14"]
[Round "4.1"]
[White "Tanasie, Cosmin"]
[Black "Ilinca, Felix-Antonio"]
[Result "1/2-1/2"]
[ECO "A46"]
[WhiteElo "2017"]
[BlackElo "2371"]
[Annotator "RC"]
[PlyCount "179"]
[EventDate "2024.04.10"]
[EventType "swiss"]
[EventCountry "ROU"]
[SourceTitle "playchess.com"]
[Source "ChessBase"]
[SourceQuality "1"]
[TimeControl "5400+30"]

1. d4 {[%emt 0:00:06]} d6 {[%emt 0:00:19]} 2. Bf4 {[%emt 0:00:11]} Nd7 {[%emt 0:00:27]} 3. Nf3 {[%emt 0:00:39]} Ngf6 {[%emt 0:00:21]} 4. Nc3 {[%emt 0:00:13]} c6 {[%emt 0:04:53]} 5. e4 {[%emt 0:02:19]} Qc7 {[%emt 0:03:28]} 6. e5 {[%emt 0:14:08]} Nh5 {[%emt 0:02:24]} 7. exd6 {[%emt 0:00:08]} exd6 {[%emt 0:00:58]} 8. Bg5 {[%emt 0:00:08]} Nb6 {[%emt 0:04:09]} 9. Bd3 {[%emt 0:06:30]} h6 {[%emt 0:03:30]} 10. Qe2+ {[%emt 0:02:57]} Be7 {[%emt 0:05:19]} 11. Bxe7 {[%emt 0:00:40]} Qxe7 {[%emt 0:00:24]} 12. Qxe7+ {[%emt 0:03:07]} Kxe7 {[%emt 0:00:06]} 13. O-O-O {[%emt 0:03:52]} Be6 {[%emt 0:04:22]} 14. g3 {[%emt 0:03:13]} Kd7 {[%emt 0:03:26]} 15. Nh4 {[%emt 0:01:40]} a5 {[%emt 0:03:48]} 16. Rhe1 {[%emt 0:03:16]} a4 {[%emt 0:02:35]} 17. a3 {[%emt 0:05:13]} Ra5 {[%emt 0:03:54]} 18. Rd2 {[%emt 0:04:26]} g5 {[%emt 0:02:53]} 19. Ng2 {[%emt 0:00:28]} Nf6 {[%emt 0:03:17]} 20. f3 {[%emt 0:05:27]} Nbd5 {[%emt 0:07:29]} 21. Nxd5 {[%emt 0:01:03]} Bxd5 {[%emt 0:00:40]} 22. Be4 {[%emt 0:02:53]} Be6 {[%emt 0:03:57]} 23. Bd3 {[%emt 0:03:36]} b5 {[%emt 0:02:12]} 24. c3 {[%emt 0:00:25]} Raa8 {[%emt 0:01:12]} 25. Rde2 {[%emt 0:01:58]} Rae8 {[%emt 0:05:00]} 26. Kd2 {[%emt 0:00:32]} h5 {[%emt 0:01:55]} 27. f4 {[%emt 0:03:21]} g4 {[%emt 0:03:04]} 28. Nh4 {[%emt 0:01:23]} Kd8 {[%emt 0:02:02]} 29. Bf5 {[%emt 0:04:18]} Bd5 {[%emt 0:03:12]} 30. Rxe8+ {[%emt 0:00:44]} Rxe8 {[%emt 0:00:43]} 31. Rxe8+ {[%emt 0:00:17]} Kxe8 {[%emt 0:00:05]} 32. Ke3 {[%emt 0:00:59]} Be6 {[%emt 0:03:30]} 33. Be4 {[%emt 0:04:46]} Kd7 {[%emt 0:01:29]} 34. Bd3 {[%emt 0:02:17]} Nd5+ {[%emt 0:03:14]} 35. Ke4 {[%emt 0:03:38]} Ke7 {[%emt 0:01:48]} 36. Be2 {[%emt 0:03:05]} Kf6 {[%emt 0:01:25]} 37. Kd3 {[%emt 0:00:52]} Bf5+ {[%emt 0:01:21]} 38. Kd2 {[%emt 0:00:18]} Be4 {[%emt 0:00:48]} 39. Bf1 {[%emt 0:01:22]} Nb6 {[%emt 0:02:05]} 40. Ke3 {[%emt 0:00:30]} d5 {[%emt 0:02:50]} 41. Kd2 {[%emt 0:00:49]} Nc8 {[%emt 0:00:38]} 42. Ke3 {[%emt 0:02:03]} Nd6 {[%emt 0:00:11]} 43. Kd2 {[%emt 0:00:13]} Ke6 {[%emt 0:01:13]} 44. Ke3 {[%emt 0:00:26]} Kd7 {[%emt 0:01:35]} 45. Kd2 {[%emt 0:00:14]} Kc7 {[%emt 0:01:00]} 46. Ke3 {[%emt 0:00:01]} Kb6 {[%emt 0:00:09]} 47. Kd2 {[%emt 0:00:08]} c5 {[%emt 0:01:29]} 48. Ke3 {[%emt 0:00:01]} Kc6 {[%emt 0:00:53]} 49. Be2 {[%emt 0:00:08]} Bb1 {[%emt 0:02:37]} 50. Bf1 {[%emt 0:00:26]} Ne4 {[%emt 0:00:51]} 51. Ng2 {[%emt 0:01:31]} Bc2 {[%emt 0:00:56]} 52. Ne1 {[%emt 0:02:48]} Bb1 {[%emt 0:00:03]} 53. Bd3 {[%emt 0:02:09]} Bxd3 {[%emt 0:00:22]} 54. Nxd3 {[%emt 0:00:02]} f6 {[%emt 0:00:18]} 55. dxc5 {[%emt 0:02:42]} Nxc5 {[%emt 0:00:21]} 56. Nb4+ {[%emt 0:01:23]} Kd6 {[%emt 0:00:05]} 57. Kd4 {[%emt 0:02:29]} Ne6+ {[%emt 0:00:24]} 58. Kd3 {[%emt 0:00:44]} Ng7 {[%emt 0:02:21]} 59. Nc2 {[%emt 0:01:06]} Kc6 {[%emt 0:01:42]} 60. Nd4+ {[%emt 0:01:18]} Kb6 {[%emt 0:00:19]} 61. Ke3 {[%emt 0:00:24]} Ne8 {[%emt 0:01:04]} 62. Nf5 {[%emt 0:01:03]} Kc5 {[%emt 0:00:26]} 63. Kd3 {[%emt 0:00:02]} Nd6 {[%emt 0:00:48]} 64. Ng7 {[%emt 0:00:47]} Nc4 {[%emt 0:00:12]} 65. Kc2 {[%emt 0:00:04]} Ne3+ {[%emt 0:00:25]} 66. Kd3 {[%emt 0:00:05]} Nc4 {[%emt 0:00:14]} 67. Kc2 {[%emt 0:00:02]} Ne3+ {[%emt 0:00:14]} 68. Kd2 {[%emt 0:01:05]} Nc4+ {[%emt 0:01:03]} 69. Kc1 {[%emt 0:00:16]} Kd6 {[%emt 0:00:33]} 70. Nxh5 {[%emt 0:00:16]} Ke7 {[%emt 0:00:06]} 71. f5 {[%emt 0:01:03]} Ne3 {[%emt 0:00:16]} 72. Kd2 {[%emt 0:01:11]} Nxf5 {[%emt 0:00:15]} 73. Kd3 {[%emt 0:00:11]} Ke6 {[%emt 0:00:45]} 74. Nf4+ {[%emt 0:00:07]} Ke5 {[%emt 0:00:20]} 75. Ng6+ {[%emt 0:00:02]} Kd6 {[%emt 0:00:07]} 76. Nf4 {[%emt 0:00:07]} Ne7 {[%emt 0:00:26]} 77. Ke3 {[%emt 0:00:49]} Nc6 {[%emt 0:00:53]} 78. h4 {[%emt 0:02:10]} gxh3 {[%emt 0:00:45]} 79. Nxh3 {[%emt 0:00:01]} Ne5 {[%emt 0:00:23]} 80. Kd4 {[%emt 0:00:39]} Nc4 {[%emt 0:01:52]} 81. Nf4 {[%emt 0:00:01]} Nxb2 {[%emt 0:00:06]} 82. Nxd5 {[%emt 0:00:08]} Nc4 {[%emt 0:00:59]} 83. Nxf6 {[%emt 0:00:09]} Nxa3 {[%emt 0:00:04]} 84. Ne4+ {[%emt 0:00:06]} Kc6 {[%emt 0:00:18]} 85. Nd2 {[%emt 0:00:01]} Nc2+ {[%emt 0:00:50]} 86. Kd3 {[%emt 0:00:02]} Ne1+ {[%emt 0:00:28]} 87. Ke2 {[%emt 0:00:09]} Nc2 {[%emt 0:00:15]} 88. Kd3 {[%emt 0:00:07]} Ne1+ {[%emt 0:00:20]} 89. Ke2 {[%emt 0:00:01]} Nc2 {[%emt 0:00:07]} 90. Kd3 {[%emt 0:00:01]} 1/2-1/2

[Event "Romanian-ch Youth Open U14 2024"]
[Site "Eforie Nord"]
[Date "2024.04.14"]
[Round "4.2"]
[White "Dodoi, Matei-Teodor"]
[Black "Savu, Victor-Xavier"]
[Result "1-0"]
[ECO "E01"]
[WhiteElo "2070"]
[BlackElo "1801"]
[Annotator "NA RC"]
[PlyCount "81"]
[EventDate "2024.04.10"]
[EventType "swiss"]
[EventCountry "ROU"]
[SourceTitle "playchess.com"]
[Source "ChessBase"]
[SourceQuality "1"]
[TimeControl "5400+30"]

1. d4 {[%emt 0:00:04]} d5 {[%emt 0:00:07]} 2. c4 {[%emt 0:00:13]} e6 {[%emt 0:00:08]} 3. Nf3 {[%emt 0:00:26]} Nf6 {[%emt 0:00:09]} 4. Nbd2 {[%emt 0:00:58]} c6 {[%emt 0:01:40]} 5. Qc2 {[%emt 0:00:25]} Nbd7 {[%emt 0:00:59]} 6. g3 {[%emt 0:00:17]} Bd6 {[%emt 0:00:38]} 7. Bg2 {[%emt 0:00:33]} O-O {[%emt 0:00:32]} 8. O-O {[%emt 0:00:25]} Re8 {[%emt 0:00:55]} 9. Re1 {[%emt 0:01:31]} e5 {[%emt 0:01:41] E01: Catalan: Early deviations.} 10. dxe5 {[%emt 0:02:56]} Nxe5 {[%emt 0:00:38]} 11. Nxe5 {[%emt 0:00:29]} Bxe5 {[%emt 0:01:40]} 12. cxd5 {[%emt 0:01:16]} Nxd5 {[%emt 0:02:07]} 13. Nf3 {[%emt 0:02:00]} Bf6 {[%emt 0:01:06]} 14. e4 {[%emt 0:04:05]} Nb6 {[%emt 0:03:35]} 15. Bf4 {[%emt 0:03:47]} g6 {[%emt 0:02:46]} 16. Rad1 {[%emt 0:00:54]} Qe7 {[%emt 0:01:08]} 17. a4 {[%emt 0:19:38]} Qb4 {[%emt 0:05:31]} 18. e5 $11 {[%emt 0:02:34]} Bf5 {[%emt 0:01:45]} 19. Qc1 {[%emt 0:02:08]} Be7 {[%emt 0:05:31]} 20. Rd4 {[%emt 0:15:28]} Qb3 {[%emt 0:02:36]} 21. Nd2 {[%emt 0:04:13]} Qc2 {[%emt 0:00:57]} 22. Ne4 {[%emt 0:08:38]} Qxc1 {[%emt 0:00:36]} 23. Rxc1 {[%emt 0:00:41]} Bxe4 {[%emt 0:00:21]} 24. Bxe4 {[%emt 0:00:43]} Rad8 {[%emt 0:00:47]} 25. Rxd8 {[%emt 0:01:39]} Rxd8 {[%emt 0:01:27]} 26. a5 {[%emt 0:03:10]} Nd5 {[%emt 0:00:33]} 27. Bxd5 {[%emt 0:01:47]} Rxd5 {[%emt 0:00:38]} 28. a6 {[%emt 0:00:05]} bxa6 {[%emt 0:00:40]} 29. Rxc6 {[%emt 0:00:10]} g5 {[%emt 0:00:45]} 30. Be3 {[%emt 0:00:27]} a5 {[%emt 0:09:46]} 31. f4 {[%emt 0:06:08]} Rb5 {[%emt 0:04:07]} 32. fxg5 {[%emt 0:08:20]} Rxe5 {[%emt 0:07:56]} 33. Rc8+ {[%emt 0:01:18]} Bf8 {[%emt 0:00:12]} 34. Bd4 {[%emt 0:01:45]} Rd5 {[%emt 0:05:03]} 35. Bf6 {[%emt 0:00:24]} Rd7 {[%emt 0:00:18]} 36. Kg2 {[%emt 0:01:18]} Rb7 {[%emt 0:00:39]} 37. h4 {[%emt 0:00:46]} a4 {[%emt 0:00:59]} 38. Kh3 {[%emt 0:00:25]} a3 {[%emt 0:11:36]} 39. bxa3 {[%emt 0:00:18]} a5 {[%emt 0:00:04]} 40. Ra8 {[%emt 0:01:09]} a4 {[%emt 0:00:35]} 41. Bc3 {[%emt 0:01:38]} 1-0